bitfinex-derivatives/quotes_SOLF0:USTF0_20240907
["timestamp","ask_amount","ask_price","bid_price","bid_amount"]
[1725670275043,5.3457,125.53,125.5,3.9848]
[1725670275242,3.9838,125.54,125.51,3.9845]
[1725670275538,4.04694836,125.54,125.46,24.49]
[1725670275736,3.9838,125.54,125.51,3.9845]
[1725670277335,2.783,125.56,125.49,24.49]
[1725670278245,6.7663,125.56,125.53,3.984]
[1725670278547,2.783,125.56,125.48,24.49]
[1725670278951,3.9837,125.55,125.52,3.9842]
[1725670281745,3.9837,125.55,125.53,3.984]
[1725670283345,2.783,125.56,125.52,9.79]
[1725670283945,2.783,125.56,125.53,3.9838]
[1725670286453,3.983,125.57,125.54,3.9836]
[1725670286747,7.89559466,125.58,125.53,9.79]
[1725670287052,7.89559466,125.58,125.55,3.9832]
[1725670302959,4.0208,125.62,125.53,9.79]
[1725670303162,4.0208,125.62,125.58,9.79]
[1725670303462,4.0208,125.62,125.59,9.79]
[1725670303657,4.0208,125.62,125.59,3.982]
[1725670303851,4.0208,125.62,125.56,4.04143508]
[1725670304050,4.0208,125.62,125.56,9.79]
[1725670304350,4.0208,125.62,125.56,13.67686861]
[1725670304553,3.9817,125.61,125.58,3.9823]
[1725670305160,8.0021,125.62,125.59,3.982]
[1725670315275,3.9816,125.61,125.53,0.311]
[1725670315475,3.9816,125.61,125.56,9.79]
[1725670315878,3.9816,125.61,125.57,3.9826]
[1725670316175,3.9818,125.6,125.57,3.9826]
[1725670316778,9.79,125.6,125.55,3.9833]
[1725670316973,9.79,125.6,125.52,3.91381911]
[1725670317276,3.983,125.57,125.53,3.984]
[1725670317470,8.04736594,125.57,125.53,3.984]
[1725670317670,10.66906594,125.57,125.53,3.984]
[1725670319178,10.66906594,125.57,125.42,7.9746]
[1725670319179,16.47606594,125.57,125.42,7.9746]
[1725670319378,1.341,125.56,125.43,0.3103]
[1725670319576,9.79,125.55,125.49,9.79]
[1725670320376,3.9837,125.54,125.51,3.9845]
[1725670320978,9.79,125.54,125.43,0.3103]
[1725670321182,9.79,125.52,125.45,160.16368294]
[1725670321378,9.79,125.52,125.45,164.11760977]
[1725670321580,3.9849,125.51,125.47,13.7758]
[1725670322182,13.7745,125.52,125.47,13.7758]
[1725670323883,13.7745,125.52,125.47,3.9858]
[1725670324085,13.7745,125.52,125.47,13.7758]
[1725670324285,13.7745,125.52,125.48,3.9856]
[1725670324584,3.9842,125.53,125.49,9.79]
[1725670325081,3.9842,125.53,125.45,150.37368294]
[1725670325277,3.9842,125.53,125.49,9.79]
[1725670326283,3.9842,125.53,125.49,13.7751]
[1725670329490,3.9842,125.53,125.49,3.9851]
[1725670330490,9.79,125.54,125.48,3.9855]
[1725670331092,9.79,125.53,125.47,3.9858]
[1725670331295,2.6945,125.52,125.45,150.37368294]
[1725670331591,2.6945,125.52,125.46,9.79]
[1725670332389,3.9852,125.5,125.47,3.9859]
[1725670332596,8.01899727,125.5,125.47,3.9859]
[1725670332782,3.9852,125.5,125.47,3.9859]
[1725670333192,7.95662997,125.49,125.45,150.37368294]
[1725670333384,7.95662997,125.49,125.45,160.16368294]
[1725670333385,3.9854,125.49,125.45,160.16368294]
[1725670333590,3.9854,125.49,125.45,154.36018294]
[1725670333987,7.91398857,125.49,125.45,154.36018294]
[1725670335196,3.9854,125.49,125.46,3.9861]
[1725670335395,3.9851,125.5,125.46,3.9861]
[1725670335696,7.98079858,125.5,125.46,3.9861]
[1725670337595,3.99569858,125.5,125.47,3.9858]
[1725670337800,2.6945,125.52,125.48,9.79]
[1725670338297,1.3367,125.55,125.5,9.79]
[1725670339000,5.3203,125.55,125.51,3.9845]
[1725670339906,101.56433537,125.56,125.51,9.79]
[1725670340104,2.6413,125.58,125.51,9.79]
[1725670340105,12.4313,125.58,125.51,9.79]
[1725670340513,2.6413,125.58,125.51,9.79]
[1725670340805,2.6413,125.58,125.53,9.79]
[1725670341104,2.6413,125.58,125.54,9.79]
[1725670341320,3.9822,125.59,125.55,3.9832]
[1725670341610,3.9822,125.59,125.55,13.7732]
[1725670342408,5.2891,125.6,125.56,3.9831]
[1725670344508,3.9822,125.59,125.55,3.9834]
[1725670345207,7.91080442,125.58,125.54,3.9835]
[1725670345508,9.79,125.57,125.5,9.79]
[1725670345707,15.03902652,125.57,125.51,3.9845]
[1725670346308,3.9832,125.56,125.51,13.7745]
[1725670346611,3.9832,125.56,125.52,3.9843]
[1725670347404,1.3071,125.6,125.54,9.79]
[1725670347606,1.3071,125.6,125.46,0.3106]
[1725670347607,1.3071,125.6,125.55,9.79]
[1725670348009,1.3071,125.6,125.55,13.7732]
[1725670348010,3.9823,125.59,125.55,13.7732]
[1725670348615,3.9823,125.59,125.55,3.9832]
[1725670351317,7.97393918,125.59,125.55,3.9832]
[1725670352518,3.9825,125.58,125.54,3.9835]
[1725670353319,9.79,125.58,125.52,13.7744]
[1725670353814,11.1122,125.58,125.52,13.7744]
[1725670354216,3.9833,125.56,125.52,13.7744]
[1725670354920,3.9833,125.56,125.52,3.9844]
[1725670356726,11.0821,125.57,125.51,13.7745]
[1725670357018,9.79,125.56,125.49,9.79]
[1725670357214,3.9836,125.55,125.51,9.79]
[1725670358421,3.9836,125.55,125.52,3.9843]
[1725670359923,3.9833,125.56,125.53,3.9841]
[1725670361822,3.9836,125.55,125.52,13.7744]
[1725670364230,3.9836,125.55,125.53,3.984]
[1725670366027,3.9833,125.56,125.53,3.984]
[1725670368722,3.9837,125.55,125.51,3.9846]
[1725670368924,11.0821,125.57,125.5,9.79]
[1725670369428,3.9836,125.55,125.52,3.9843]
[1725670372536,3.9836,125.55,125.52,13.7743]
[1725670372938,3.9833,125.56,125.52,13.7743]
[1725670373242,3.9833,125.56,125.53,3.984]
[1725670374541,1.2921,125.57,125.51,9.79]
[1725670374945,3.9832,125.56,125.52,3.9844]
[1725670379752,3.9834,125.55,125.52,3.9844]
[1725670383648,9.79,125.53,125.45,152.0867628]
[1725670383853,9.79,125.53,125.46,9.79]
[1725670384047,4.01132094,125.52,125.46,9.79]
[1725670384253,3.9845,125.52,125.49,3.9851]
[1725670384448,7.96115471,125.52,125.49,3.9851]
[1725670387253,3.9843,125.53,125.49,13.7751]
[1725670387460,1.2921,125.57,125.52,9.79]
[1725670387860,3.9834,125.55,125.51,3.9844]
[1725670388062,9.79,125.53,125.45,156.05106518]
[1725670388263,9.79,125.53,125.47,9.79]
[1725670388463,3.9849,125.51,125.47,3.9859]
[1725670388652,8.03703566,125.51,125.47,13.7759]
[1725670390267,3.9852,125.5,125.46,13.7761]
[1725670390560,3.9852,125.5,125.46,9.79]
[1725670392069,4.1377,125.52,125.47,9.79]
[1725670392261,2.7244,125.52,125.49,9.79]
[1725670392461,6.75485445,125.52,125.49,13.7751]
[1725670393166,10.73945445,125.52,125.48,3.9855]
[1725670393359,10.73945445,125.52,125.48,13.7755]
[1725670393561,10.73945445,125.52,125.49,3.9852]
[1725670395267,1.3111,125.57,125.5,9.79]
[1725670395466,1.3111,125.57,125.51,9.79]
[1725670395467,2.7589,125.56,125.51,9.79]
[1725670395762,3.9836,125.55,125.52,3.9843]
[1725670401763,3.9836,125.55,125.51,3.9846]
[1725670401966,3.9837,125.54,125.51,3.9846]
[1725670404060,3.9848,125.51,125.45,152.0867628]
[1725670404268,13.71110278,125.51,125.45,152.0867628]
[1725670404571,13.71110278,125.51,125.46,3.9861]
[1725670404765,5.3571,125.5,125.46,3.9861]
[1725670405871,3.9854,125.49,125.46,3.9861]
[1725670406172,11.1619,125.5,125.35,7.9791]
[1725670406367,3.9861,125.47,125.36,0.3106]
[1725670406568,3.9861,125.47,125.41,9.79]
[1725670407065,3.9861,125.47,125.43,3.9872]
[1725670407370,9.79,125.45,125.36,3.99928527]
[1725670407572,9.79,125.42,125.35,3.9897]
[1725670407869,9.79,125.42,125.31,0.3106]
[1725670407870,3.9888,125.39,125.31,0.3106]
[1725670408070,3.9888,125.39,125.28,141.97817596]
[1725670408071,9.79,125.39,125.28,141.97817596]
[1725670408265,4.0852,125.38,125.31,9.79]
[1725670408572,4.0852,125.38,125.32,9.79]
[1725670408975,8.0743,125.38,125.33,3.9902]
[1725670409266,4.0852,125.38,125.32,9.79]
[1725670409665,4.0852,125.38,125.33,9.79]
[1725670410170,4.0852,125.38,125.32,24.5]
[1725670410763,4.0794065,125.42,125.33,24.5]
[1725670410973,28.6817,125.43,125.33,24.5]
[1725670411172,1.16415716,125.42,125.33,24.5]
[1725670411374,3.97302553,125.41,125.33,24.5]
[1725670411674,3.9884,125.4,125.35,3.9897]
[1725670412373,8.03907036,125.4,125.35,3.9897]
[1725670413170,8.03907036,125.4,125.36,3.9895]
[1725670413368,3.9881,125.41,125.35,24.5]
[1725670414267,3.9881,125.41,125.37,3.9889]
[1725670415470,3.9882,125.4,125.36,3.9893]
[1725670417269,3.9886,125.39,125.35,3.9897]
[1725670419168,24.5,125.41,125.35,3.9897]
[1725670419774,3.9888,125.39,125.35,3.9897]
[1725670420374,3.9888,125.39,125.32,24.5]
[1725670420578,3.9888,125.39,125.33,24.5]
[1725670421275,3.9888,125.39,125.36,3.9894]
[1725670421577,32.57438105,125.43,125.36,3.9894]
[1725670421578,3.9884,125.4,125.36,3.9894]
[1725670421771,3.9884,125.4,125.33,24.5]
[1725670422079,3.988,125.41,125.37,3.9891]
[1725670422667,3.988,125.41,125.33,24.5]
[1725670422875,3.988,125.41,125.35,24.5]
[1725670423279,3.9876,125.42,125.38,3.9888]
[1725670424878,3.9879,125.41,125.37,3.9891]
[1725670431085,3.9882,125.4,125.37,3.9891]
[1725670433886,3.9888,125.39,125.28,146.05000881]
[1725670434085,3.9888,125.39,125.33,9.81]
[1725670434485,3.9889,125.38,125.35,3.9896]
[1725670435795,3.9892,125.37,125.34,3.9899]
[1725670437193,3.9892,125.37,125.35,3.9898]
[1725670437488,3.989,125.38,125.35,3.9898]
[1725670438198,8.07438105,125.43,125.36,9.81]
[1725670438497,9.81,125.42,125.36,9.81]
[1725670438995,3.9884,125.4,125.36,9.81]
[1725670439690,3.9884,125.4,125.37,3.989]
[1725670442296,17.88438105,125.43,125.37,9.81]
[1725670442600,9.81,125.42,125.36,9.81]
[1725670443193,3.9881,125.41,125.37,3.989]
[1725670444195,8.07438105,125.43,125.36,9.81]
[1725670444394,3.9876,125.42,125.38,9.81]
[1725670444599,17.88438105,125.43,125.37,9.81]
[1725670444901,3.9879,125.41,125.38,3.9886]
[1725670447197,3.9882,125.4,125.38,3.9886]
[1725670447396,3.9882,125.4,125.37,13.799]
[1725670447899,3.9882,125.4,125.37,3.989]
[1725670450797,9.81,125.42,125.37,3.989]
[1725670450998,9.81,125.41,125.36,3.9893]
[1725670451303,9.81,125.39,125.36,3.9893]
[1725670451495,9.81,125.39,125.35,3.9897]
[1725670452103,3.989,125.38,125.35,3.9897]
[1725670452297,9.81,125.38,125.34,3.9899]
[1725670452906,3.9893,125.37,125.34,3.9899]
[1725670454302,3.9895,125.36,125.33,3.9903]
[1725670454502,9.81,125.38,125.32,9.81]
[1725670455204,9.81,125.39,125.33,9.81]
[1725670455606,3.9892,125.37,125.34,3.99]
[1725670456606,3.9889,125.38,125.35,3.9897]
[1725670457203,3.9893,125.37,125.32,9.81]
[1725670457709,3.9893,125.37,125.34,3.99]
[1725670459608,3.90704371,125.36,125.34,3.99]
[1725670460311,3.90704371,125.36,125.31,9.81]
[1725670460506,11.1358,125.38,125.31,9.81]
[1725670460705,3.9897,125.36,125.33,3.9901]
[1725670460911,11.1358,125.38,125.33,3.9901]
[1725670461115,1.3258,125.38,125.33,9.81]
[1725670461314,1.3258,125.38,125.34,3.9899]
[1725670462212,3.9893,125.37,125.34,3.9899]
[1725670462712,3.9884,125.4,125.34,9.81]
[1725670463210,3.9884,125.4,125.37,3.9891]
[1725670464912,13.7984,125.4,125.37,3.9891]
[1725670465915,13.7984,125.4,125.36,3.9893]
[1725670466111,3.9886,125.39,125.36,3.9893]
[1725670466511,9.81,125.38,125.36,3.9893]
[1725670466717,13.7988,125.38,125.35,3.9896]
[1725670467309,3.99,125.35,125.3,135.67690122]
[1725670467614,4.06470875,125.35,125.3,135.67690122]
[1725670468318,7.92086684,125.35,125.31,3.91407177]
[1725670469416,7.92086684,125.35,125.32,3.9907]
[1725670469614,3.9898,125.35,125.32,3.9907]
[1725670470112,7.9256281,125.35,125.32,3.9907]
[1725670470318,7.9256281,125.35,125.31,3.9909]
[1725670471314,3.9902,125.34,125.31,3.9909]
[1725670471518,13.8002,125.34,125.31,3.9909]
[1725670472514,9.81,125.34,125.31,3.9909]
[1725670475836,13.8001,125.34,125.31,3.9909]
[1725670476034,9.81,125.34,125.3,3.9913]
[1725670476337,3.9906,125.33,125.3,3.9913]
[1725670478231,13.8003,125.34,125.27,9.81]
[1725670478437,13.8003,125.34,125.27,13.87433516]
[1725670479433,9.81,125.34,125.28,9.81]
[1725670479832,9.81,125.34,125.31,3.9908]
[1725670480232,13.8001,125.34,125.31,3.9908]
[1725670481527,9.81,125.34,125.32,3.9907]
[1725670482331,13.8002,125.34,125.31,3.9909]
[1725670482532,9.81,125.34,125.31,3.9909]
[1725670482831,9.81,125.34,125.22,0.312]
[1725670483037,9.81,125.33,125.26,9.81]
[1725670483627,3.9908,125.32,125.29,3.9915]
[1725670484127,9.81,125.33,125.26,9.81]
[1725670484325,3.9909,125.32,125.29,3.9915]
[1725670490734,13.8011,125.31,125.28,3.9918]
[1725670492236,9.81,125.3,125.22,0.312]
[1725670492537,9.81,125.3,125.23,9.81]
[1725670492538,11.2364,125.3,125.23,9.81]
[1725670492741,3.9918,125.29,125.26,3.9925]
[1725670493139,9.81,125.29,125.22,9.81]
[1725670493340,9.81,125.29,125.17,0.3134]
[1725670493642,9.81,125.29,125.22,9.81]
[1725670493944,7.96712862,125.28,125.25,3.9927]
[1725670495335,7.96712862,125.28,125.23,3.9934]
[1725670495336,9.81,125.27,125.23,3.9934]
[1725670495541,9.81,125.27,125.2,9.81]
[1725670495743,17.89473544,125.27,125.24,3.9931]
[1725670499537,13.90223544,125.27,125.17,4.40403832]
[1725670499742,13.90223544,125.27,125.2,9.81]
[1725670500145,17.89473544,125.27,125.2,9.81]
[1725670500742,17.89473544,125.27,125.24,3.9931]
[1725670501445,9.81,125.26,125.17,4.40403832]
[1725670501648,9.81,125.24,125.17,14.21403832]
[1725670502242,9.81,125.24,125.17,4.09063832]
[1725670502451,11.1253,125.24,125.17,9.81]
[1725670502752,11.1253,125.24,125.17,13.7360976]
[1725670502945,9.81,125.23,125.13,151.10877259]
[1725670503149,9.81,125.2,125.14,9.81]
[1725670503642,3.9951,125.19,125.16,3.9958]
[1725670503844,5.39973406,125.23,125.16,9.81]
[1725670504055,5.39973406,125.23,125.18,9.81]
[1725670504244,9.81,125.22,125.13,155.038865]
[1725670504450,9.81,125.22,125.16,9.81]
[1725670504754,17.85573406,125.23,125.19,3.9947]
[1725670505250,13.8038,125.23,125.19,3.9947]
[1725670505651,17.85173402,125.23,125.2,3.9944]
[1725670505956,8.04173402,125.23,125.16,4.06710718]
[1725670506253,1.3153,125.24,125.21,3.9942]
[1725670506450,5.20984872,125.24,125.21,3.9942]
[1725670507250,1.3153,125.24,125.21,3.9942]
[1725670507444,5.35204968,125.24,125.21,3.9942]
[1725670507857,5.35204968,125.24,125.22,3.9939]
[1725670508349,1.2944,125.25,125.22,3.9937]
[1725670509953,1.2944,125.25,125.23,3.9935]
[1725670510349,1.3868,125.28,125.23,9.81]
[1725670510649,9.81,125.31,125.25,9.81]
[1725670510860,13.8011,125.31,125.25,9.81]
[1725670511456,13.8011,125.31,125.27,3.9921]
[1725670515263,9.81,125.3,125.23,4.08428314]
[1725670515562,13.87436053,125.29,125.23,9.81]
[1725670515860,9.81,125.27,125.21,9.81]
[1725670516057,9.81,125.27,125.17,0.3144]
[1725670516263,13.8024,125.27,125.23,3.9933]
[1725670516755,13.8024,125.27,125.2,9.81]
[1725670517153,9.81,125.27,125.21,9.81]
[1725670518162,9.81,125.27,125.24,3.9931]
[1725670521065,13.8025,125.27,125.24,3.9931]
[1725670521363,13.8025,125.27,125.23,3.9934]
[1725670521565,13.8025,125.27,125.2,9.81]
[1725670522160,13.8025,125.27,125.23,3.9934]
[1725670524660,13.8025,125.27,125.24,3.9932]
[1725670525462,8.0639,125.28,125.25,3.9927]
[1725670525663,4.0718,125.28,125.22,9.81]
[1725670526066,9.81,125.26,125.24,3.9932]
[1725670526763,13.803,125.25,125.18,9.81]
[1725670526961,9.81,125.25,125.18,9.81]
[1725670527164,13.8033,125.24,125.18,9.81]
[1725670527764,13.8033,125.24,125.21,3.9942]
[1725670528964,4.0718,125.28,125.18,9.81]
[1725670529164,9.81,125.26,125.19,9.81]
[1725670529566,13.8029,125.26,125.19,9.81]
[1725670529864,9.81,125.26,125.19,9.81]
[1725670530864,9.81,125.26,125.23,3.9933]
[1725670531365,3.9924,125.27,125.22,9.81]
[1725670531574,3.9924,125.27,125.21,9.81]
[1725670532265,3.9924,125.27,125.24,3.9931]
[1725670533466,13.8027,125.26,125.23,3.9935]
[1725670533667,13.8027,125.26,125.21,9.81]
[1725670533869,13.8027,125.26,125.19,13.84330929]
[1725670534063,13.8027,125.26,125.19,9.81]
[1725670534766,3.993,125.25,125.22,3.9938]
[1725670534963,13.803,125.25,125.22,3.9938]
[1725670536763,3.993,125.25,125.22,3.9938]
[1725670536968,13.8028,125.26,125.23,3.9936]
[1725670537270,9.81,125.26,125.19,9.81]
[1725670537870,3.993,125.25,125.22,3.9936]
[1725670541771,3.9928,125.26,125.2,9.81]
[1725670543169,3.9931,125.25,125.2,9.81]
[1725670543670,3.9931,125.25,125.19,9.81]
[1725670543862,3.9931,125.25,125.18,13.78180522]
[1725670544467,3.9931,125.25,125.22,3.9939]
[1725670546976,13.8027,125.26,125.23,3.9936]
[1725670547675,8.064,125.28,125.25,3.9928]
[1725670547876,13.8818,125.28,125.21,9.81]
[1725670548267,13.8818,125.28,125.23,3.9936]
[1725670548774,9.81,125.26,125.23,3.9936]
[1725670548981,3.993,125.25,125.18,3.97180522]
[1725670549274,3.993,125.25,125.19,9.81]
[1725670549476,3.993,125.25,125.23,3.9936]
[1725670550281,13.8028,125.26,125.23,3.9936]
[1725670550675,9.81,125.26,125.22,3.9937]
[1725670551176,3.9932,125.25,125.22,3.9937]
[1725670554393,3.9933,125.24,125.21,3.994]
[1725670554593,9.81,125.23,125.15,134.83177503]
[1725670554888,4.0265977,125.22,125.17,9.81]
[1725670555089,3.9942,125.21,125.18,3.995]
[1725670555283,4.07212305,125.21,125.16,9.81]
[1725670555490,11.1819,125.22,125.16,9.81]
[1725670555693,1.3719,125.22,125.18,9.81]
[1725670556392,1.3719,125.22,125.2,3.9944]
[1725670557594,9.81,125.27,125.19,9.81]
[1725670557786,11.1819,125.27,125.2,9.81]
[1725670558190,3.9932,125.25,125.21,3.994]
[1725670563496,1.3719,125.27,125.21,9.81]
[1725670563903,5.3642,125.27,125.24,3.9931]
[1725670564091,11.1819,125.27,125.2,9.81]
[1725670564399,3.993,125.25,125.22,3.9938]
[1725670565187,3.9935,125.24,125.15,138.91707647]
[1725670565386,3.9935,125.24,125.18,9.81]
[1725670566202,3.9935,125.24,125.15,138.91707647]
[1725670566393,3.9935,125.24,125.18,9.81]
[1725670567094,3.9935,125.24,125.2,3.9943]
[1725670568192,3.9935,125.24,125.21,3.9942]
[1725670572703,9.81,125.24,125.2,3.9944]
[1725670573101,3.9938,125.23,125.2,3.9944]
[1725670576105,3.994,125.22,125.19,3.9948]
[1725670576903,8.03019611,125.22,125.19,3.9948]
[1725670580301,13.84619611,125.22,125.15,134.83177503]
[1725670580502,15.27009611,125.22,125.16,9.81]
[1725670580909,3.9944,125.21,125.18,3.9949]
[1725670581908,9.81,125.21,125.15,134.83177503]
[1725670582103,5.46009611,125.22,125.15,134.83177503]
[1725670582104,9.81,125.2,125.15,134.83177503]
[1725670582400,5.46009611,125.22,125.16,9.81]
[1725670582608,1.4239,125.22,125.17,9.81]
[1725670583010,1.4239,125.22,125.19,3.9946]
[1725670583404,5.4178,125.22,125.19,3.9946]
[1725670583809,1.4239,125.22,125.19,3.9946]
[1725670585505,9.4273293,125.22,125.19,3.9946]
[1725670585703,15.2433293,125.22,125.18,3.995]
[1725670586302,9.81,125.21,125.17,3.9955]
[1725670586819,3.9948,125.2,125.17,3.9955]
[1725670589006,9.81,125.25,125.15,134.83177503]
[1725670589214,9.81,125.25,125.18,9.81]
[1725670589415,3.9935,125.24,125.2,3.9945]
[1725670590015,3.9937,125.23,125.2,3.9945]
[1725670590214,4.04194241,125.22,125.16,9.81]
[1725670590420,9.81,125.22,125.16,9.81]
[1725670590617,4.02356813,125.21,125.18,3.995]
[1725670591109,13.8044,125.21,125.17,3.9953]
[1725670591313,3.97044249,125.2,125.17,3.9953]
[1725670591822,3.9946,125.2,125.16,3.9958]
[1725670592023,9.81,125.19,125.16,3.9958]
[1725670592319,13.8051,125.19,125.15,3.9961]
[1725670592517,9.81,125.19,125.12,9.81]
[1725670592719,9.81,125.18,125.12,9.81]
[1725670593018,9.81,125.18,125.1,9.81]
[1725670593218,9.81,125.15,125.06,0.315]
[1725670593724,9.81,125.15,125.08,9.81]
[1725670594213,9.81,125.15,125.06,0.315]
[1725670594415,13.8067,125.14,125.07,9.81]
[1725670594823,13.8067,125.14,125.09,3.9978]
[1725670595125,3.94947826,125.13,125.07,9.81]
[1725670595332,9.81,125.11,125.0,0.3152]
[1725670595520,9.81,125.11,125.06,3.9988]
[1725670595918,3.9981,125.1,125.06,3.9988]
[1725670596119,25.926,125.12,125.07,3.9987]
[1725670596327,3.9978,125.1,125.01,24.58]
[1725670596618,3.9978,125.1,125.06,3.9989]
[1725670597522,3.9981,125.09,125.04,3.9995]
[1725670597920,3.9981,125.09,125.04,3.9994]
[1725670599620,3.9981,125.09,125.05,3.9993]
[1725670600225,24.58,125.1,125.01,28.54977116]
[1725670600226,24.58,125.1,125.04,3.9996]
[1725670601531,3.9987,125.08,125.04,3.9996]
[1725670603627,3.9983,125.09,125.05,3.9993]
[1725670604922,24.58,125.11,125.05,3.9993]
[1725670605126,24.58,125.09,124.99,24.58]
[1725670605320,2.8077,125.08,125.0,3.90193186]
[1725670605725,24.58,125.07,125.0,3.90193186]
[1725670606531,8.07596304,125.06,125.0,3.90193186]
[1725670606725,3.999,125.06,125.0,3.90193186]
[1725670606926,3.999,125.06,125.02,4.0001]
[1725670607427,3.94135762,125.05,125.02,4.0001]
[1725670608431,3.94135762,125.05,125.03,4.0]
[1725670610328,3.94135762,125.05,125.02,4.0002]
[1725670610531,3.9994,125.05,124.99,3.98935954]
[1725670610735,3.9109564,125.04,125.01,4.0005]
[1725670610927,25.9287,125.07,125.01,4.0005]
[1725670611529,3.9996,125.05,125.01,4.0005]
[1725670611724,3.9996,125.05,125.0,4.0009]
[1725670611725,28.65296288,125.05,125.0,4.0009]
[1725670611937,24.58,125.05,125.0,4.0009]
[1725670612135,3.9998,125.04,125.0,4.0009]
[1725670612329,4.05841152,125.03,125.01,4.0006]
[1725670614931,4.05841152,125.03,125.0,4.0008]
[1725670615129,4.05841152,125.03,124.96,24.58]
[1725670615130,4.0,125.03,124.96,24.58]
[1725670615339,3.95038992,125.02,124.96,24.58]
[1725670615537,3.95038992,125.02,124.99,4.0011]
[1725670615725,3.95038992,125.02,124.96,24.58]
[1725670615932,3.9998,125.04,124.96,24.58]
[1725670617132,3.9927984,125.05,124.98,24.58]
[1725670617333,4.09761935,125.06,124.99,4.09401864]
[1725670617538,8.09681935,125.06,124.99,4.09401864]
[1725670617838,8.09681935,125.06,125.02,4.0001]
[1725670618141,9.84,125.06,125.0,13.85760336]
[1725670618334,2.8077,125.08,125.0,13.85760336]
[1725670618335,12.6477,125.08,125.04,3.9995]
[1725670618533,12.6477,125.08,124.95,3.97039392]
[1725670618534,33.8,125.05,124.95,3.97039392]
[1725670618737,4.0006,125.01,124.96,4.0022]
[1725670618931,13.85616676,125.0,124.96,4.0022]
[1725670619126,13.85616676,125.0,124.94,95.997]
[1725670619434,13.85616676,125.0,124.95,4.0023]
[1725670619635,13.85616676,125.0,124.94,99.93633295]
[1725670620135,8.01736676,125.0,124.96,4.0021]
[1725670620441,24.58,125.02,124.94,99.93633295]
[1725670620634,27.3028,125.03,124.94,124.51633295]
[1725670620938,4.0005,125.02,124.98,4.0015]
[1725670621139,2.7228,125.03,124.94,124.51633295]
[1725670621339,2.7228,125.03,124.97,4.0019]
[1725670621637,2.7228,125.03,124.94,124.51633295]
[1725670621939,2.7228,125.03,124.98,4.0015]
[1725670622537,4.0005,125.02,124.98,4.0015]
[1725670623940,2.7228,125.03,124.95,24.58]
[1725670624135,2.7228,125.03,124.95,24.901]
[1725670624542,2.7228,125.03,125.0,4.0007]
[1725670624737,3.960792,125.08,124.97,24.58]
[1725670624738,28.5606,125.07,124.97,24.58]
[1725670625033,3.9996,125.05,125.01,4.0004]
[1725670625234,8.010402,125.05,125.01,4.0004]
[1725670625440,28.5606,125.07,124.97,24.58]
[1725670625639,8.08851768,125.06,125.02,4.0001]
[1725670626640,3.9993,125.06,125.0,24.58]
[1725670626838,7.9795,125.07,125.0,24.58]
[1725670627142,7.9795,125.07,124.97,24.58]
[1725670627143,227.0,125.14,125.05,24.58]
[1725670627342,3.9978,125.1,125.04,28.62360856]
[1725670627846,3.9978,125.1,125.06,3.9988]
[1725670628039,3.9975,125.11,125.04,28.62360856]
[1725670628238,3.9975,125.11,125.06,3.999]
[1725670629142,3.9975,125.11,125.07,3.9986]
[1725670629944,29.9147,125.12,125.04,28.62360856]